Cogmind - Beta 11 @@@ ROGUE MODE // 2022.03.24 @ 22:45:31 Player: Ciaphas Result: Destroyed by D-53 Grenadier with Mini Grenade Launcher Performance ------------- Evolutions (0) 0 Regions Visited (2) 400 Robots Destroyed (26) 130 Value Destroyed (398) 398 Prototype IDs (0) 0 Alien Tech Used (0) 0 Bonus (0) 0 TOTAL SCORE: 928 Bonus ------- None Cogmind --------- Core Integrity 0/250 Matter 181/300 Energy 100/100 System Corruption 1% Temperature Cool (0) Movement Core (250) Ox4 Location -10/Mines Parts ------- > --- POWER (1) -------- (None) > --- PROPULSION (2) --- (None) > --- UTILITY (2) ------ Medium Storage Unit Sensor Array > --- WEAPON (2) ------- Autogun > --- INVENTORY (10) --- Improved Ion Engine Aluminum Leg Medium Storage Unit Large Matter Pod (150) Signal Interpreter Improved Targeting Computer Light Armor Plating Heavy Assault Rifle Rocket Launcher Mining Laser Peak State ------------ > --- POWER ------------ Light Ion Engine > --- PROPULSION ------- Aluminum Leg Aluminum Leg > --- UTILITY ---------- Medium Storage Unit Sensor Array > --- WEAPON ----------- Heavy Assault Rifle Heavy Assault Rifle > --- INVENTORY -------- Ion Engine Wheel Small Storage Unit Large Matter Pod Weight Redist. System Signal Interpreter Assault Rifle Light Assault Rifle Grenade Launcher [Rating: 10] Favorites ----------- Power Light Ion Engine Engine Light Ion Engine Propulsion Aluminum Leg Leg Aluminum Leg Wheel Wheel Utility Medium Storage Unit Device Sensor Array Storage Medium Storage Unit Weapon Autogun Energy Gun EM Pulse Gun Ballistic Gun Autogun Launcher Grenade Launcher Special Weapon Mining Laser Build | -11 -10 -10 ------- Run | Scr Mat Min Slots Evolved . | . . . Power . | . . . Propulsion . | . . . Utility . | . . . Weapon . | . . . Parts Attached 29 | 3 23 3 Power 3 | . 3 . Engine 3 | . 3 . Core . | . . . Reactor . | . . . Propulsion 5 | . 4 1 Treads . | . . . Leg 4 | . 4 . Wheel 1 | . . 1 Hover . | . . . Flight . | . . . Utility 4 | 1 3 . Device 3 | 1 2 . Storage 1 | . 1 . Processor . | . . . Hackware . | . . . Protection . | . . . Artifact . | . . . Weapon 17 | 2 13 2 Energy Gun 5 | 2 3 . Energy Cannon . | . . . Ballistic Gun 7 | . 6 1 Ballistic Cannon . | . . . Launcher 3 | . 2 1 Special Weapon 2 | . 2 . Impact Weapon . | . . . Slashing Weapon . | . . . Piercing Weapon . | . . . Special Melee Weapon . | . . . Unidentified Prototypes . | . . . Parts Lost 4 | . . 4 Power 1 | . . 1 Propulsion 2 | . . 2 Utility . | . . . Weapon 1 | . . 1 Highest Loss Streak 4 | . . 4 To Critical Strikes . | . . . Average Slot Usage (%) 99 | . 99 99 Engine 13 | . 14 13 Leg 27 | . 28 27 Device 13 | . 13 14 Storage 14 | . 14 14 Energy Gun 8 | . 11 . Ballistic Gun 18 | . 16 28 Naked Turns . | . . . Heaviest Build 20 | 12 20 20 Greatest Support 20 | 20 20 20 Greatest Overweight (x) 5 | . . 5 Average Overweight (x) . | . . . Largest Inventory Capacity 10 | 8 10 10 Average Capacity 9 | 8 9 10 Most Carried 10 | 5 10 10 Average Carried 9 | 3 9 9 Final Capacity 10 | 8 10 10 Final Carried 10 | 4 10 10 Class Distribution -------------------- 100% | Mutant Dominant Class ---------------- Mutant | -10/Materials Mutant | -10/Mines Resources | -11 -10 -10 ----------- Run | Scr Mat Min Matter Collected 778 | 230 526 22 Remotely 85 | 30 55 . Salvage Created 809 | 71 696 42 Parts 54 | 6 42 6 Haulers Intercepted 2 | . 2 . Recyclers Shooed 1 | . 1 . Parts Field Recycled . | . . . Retrieved Matter . | . . . Parts Self-Destructed . | . . . Prevented . | . . . Kills | -11 -10 -10 ------- Run | Scr Mat Min Combat Hostiles Destroyed 15 | . 11 4 Guns 9 | . 8 1 AOE 6 | . 3 3 Classes Destroyed 9 | 2 6 1 Builder 1 | . 1 . Tunneler 2 | 1 1 . Hauler 2 | . 2 . Recycler 3 | 1 2 . Operator 1 | . 1 . Watcher 3 | . 3 . Swarmer 9 | . 6 3 Grunt 5 | . 5 . Assembled 1 | . . 1 Best Kill Streak 4 | 2 4 3 Combat Bots Only 4 | . 4 3 Max Kills in Single Turn 3 | 1 3 2 Gunslinging . | . . . Exploded 3 | . 3 2 Melee . | . . . Uniques/NPCs Destroyed . | . . . Combat | -11 -10 -10 -------- Run | Scr Mat Min Damage Taken 1176 | . 522 654 Core 255 | . 108 147 Absorbed by Shields . | . . . Core Remaining (%) 100 | 100 . . Volleys Fired 68 | 2 57 9 Largest 2 | 2 2 2 Hottest 100 | 80 100 46 Shots Fired 123 | 4 103 16 Gun 115 | 4 97 14 Cannon . | . . . Launcher 3 | . 1 2 Special 5 | . 5 . Kinetic 53 | . 39 14 Thermal 7 | 2 5 . Explosive 3 | . 1 2 Electromagnetic 60 | 2 58 . Robot Hit Streak 11 | 3 11 7 Robot Miss Streak 3 | . 3 2 Penetration Max . | . . . Secondary Targets . | . . . Shots Hit Robots 69 | 3 57 9 Core Hits 37 | 2 28 7 Critical Kills . | . . . Critical Parts Destroyed . | . . . Critical Strikes 1 | . 1 . Corrupt 1 | . 1 . Melee Attacks . | . . . Impact . | . . . Slashing . | . . . Piercing . | . . . Sneak Attacks . | . . . Combat Hostiles . | . . . Follow-up Attacks . | . . . Damage Inflicted 1305 | 41 990 274 Guns 986 | 41 807 138 Cannons . | . . . Explosions 319 | . 183 136 Melee . | . . . Ramming . | . . . Kinetic 480 | . 342 138 Thermal 82 | 11 71 . Explosive 248 | . 112 136 Electromagnetic 495 | 30 465 . Impact . | . . . Slashing . | . . . Piercing . | . . . Highest Corruption 1 | . 1 1 Average Corruption 1 | . 1 1 Corruption Purged . | . . . Corruption Blocked . | . . . Effects 7 | . 4 3 Message Errors 2 | . 1 1 Matter Fused 2 | . 1 1 Heat Flow Errors 2 | . 1 1 Energy Discharges 1 | . 1 . Overload Shots . | . . . Overflow Damage . | . . . Projectiles . | . . . Explosions . | . . . Melee . | . . . Knockbacks . | . . . Impact . | . . . Kinetic . | . . . Secondary . | . . . Self-Inflicted Damage 24 | . 19 5 Shots 2 | . 1 1 Rammed . | . . . Targets Rammed . | . . . Kicked . | . . . Crushed . | . . . Highest Temperature 191 | 36 150 191 Average Temperature 54 | 20 57 50 Received Heat Transfer 244 | . 204 40 Siege Activations . | . . . Robots Corrupted 1 | . 1 . Combat Hostiles . | . . . Parts Fried 3 | . 3 . Impact Corruptions . | . . . Robots Melted . | . . . Combat Hostiles . | . . . Parts Melted . | . . . Heat Transferred 125 | 25 100 . Parts Sabotaged . | . . . Parts Stolen . | . . . Parts Stripped . | . . . Power Chain Reactions 1 | . 1 . Missiles Intercepted . | . . . Alert | -11 -10 -10 ------- Run | Scr Mat Min Peak Influence 302 | 10 302 164 Initial 31 | . 6 31 Average 154 | 8 166 121 Maximum Alert Level 1 | . 1 . Low Security (%) 78 | 100 72 100 Level 1 21 | . 27 . Level 2 . | . . . Level 3 . | . . . Level 4 . | . . . Level 5 . | . . . High Security . | . . . Max Security . | . . . Squads Dispatched 3 | . 3 . Investigation 1 | . 1 . Extermination . | . . . Reinforcement 2 | . 2 . Assault . | . . . Garrison . | . . . Intercept . | . . . Searches Triggered . | . . . Construction Impeded . | . . . Haulers Reinforced . | . . . Active Scanning Responses . | . . . Cargo Convoy Interrupts . | . . . Stealth | -11 -10 -10 --------- Run | Scr Mat Min Distress Signals 2 | . 2 . Communications Jammed . | . . . Distress Signals . | . . . Times Spotted 39 | . 24 15 Peak Tracking Total 10 | . 5 10 Tactical Retreats 2 | . 1 1 Traps | -11 -10 -10 ------- Run | Scr Mat Min Traps Triggered 2 | . 2 . Indirectly . | . . . Trap Hack Attempts . | . . . Triggered . | . . . Disarmed . | . . . Reprogrammed . | . . . Reused . | . . . Traps Extracted . | . . . Installed . | . . . Triggered . | . . . Machines | -11 -10 -10 ---------- Run | Scr Mat Min Machines Disabled 3 | . 2 1 Max in Single Turn 1 | . 1 1 Machines Sabotaged . | . . . Garrisons Compromised . | . . . Overloaded Fab Kills . | . . . Hacking | -11 -10 -10 --------- Run | Scr Mat Min Machines Accessed 5 | . 5 . Terminals 4 | . 4 . Fabricators . | . . . Repair Stations . | . . . Recycling Units 1 | . 1 . Scanalyzers . | . . . Garrison Access . | . . . Total Hacks 13 | . 13 . Successful 5 | . 5 . Failed 8 | . 8 . Catastrophic . | . . . Database Lockouts . | . . . Manual 11 | . 11 . Terminals 10 | . 10 . Fabricators . | . . . Repair Stations . | . . . Recycling Units 3 | . 3 . Scanalyzers . | . . . Garrison Access . | . . . Terminal Hacks 2 | . 2 . Robot Analysis 2 | . 2 . Fabricator Hacks . | . . . Repair Station Hacks . | . . . Recycling Unit Hacks 1 | . 1 . Report Inventory 1 | . 1 . Scanalyzer . | . . . Garrison Access Hacks . | . . . Unauthorized Hacks 2 | . 2 . Terminals 2 | . 2 . Botnet 2 | . 2 . Fabricators . | . . . Repair Stations . | . . . Recycling Units . | . . . Scanalyzers . | . . . Garrison Access . | . . . Data Cores Recovered 1 | . 1 . Used . | . . . Hacking Detections 5 | . 5 . Full Trace Events . | . . . Feedback Events . | . . . Feedback Blocked . | . . . Robot Schematics Acquired . | . . . Robots Built . | . . . Authchips . | . . . Time . | . . . Total Robot Build Rating . | . . . Part Schematics Acquired . | . . . Parts Built . | . . . Authchips . | . . . Time . | . . . Total Part Build Rating . | . . . Parts Repaired . | . . . Time . | . . . Parts Recycled . | . . . Recycled Matter . | . . . Retrieved Matter . | . . . Retrieved Components . | . . . Parts Scanalyzed . | . . . Part Schematics Acquired . | . . . Parts Damaged . | . . . Bothacking | -11 -10 -10 ------------ Run | Scr Mat Min Used RIF Installer . | . . . Robots Hacked . | . . . Non-combat . | . . . Combat . | . . . Robot Hacks Applied . | . . . Relay Couplers Released . | . . . Fabnet Peak Effective % . | . . . Robots Rewired . | . . . Allies Hacked . | . . . Hacks Repelled . | . . . Allies | -11 -10 -10 -------- Run | Scr Mat Min Total Allies . | . . . Largest Group . | . . . Highest-Rated Group . | . . . Highest-Rated Ally . | . . . Total Orders . | . . . Ally Attacks . | . . . Total Damage . | . . . Kills . | . . . Allies Corrupted . | . . . Allies Melted . | . . . Intel | -11 -10 -10 ------- Run | Scr Mat Min Robot Analysis Total 2 | . 2 . Derelict Logs Recovered 1 | . . 1 Drone Launches . | . . . Drone Recoveries . | . . . Exploration | -11 -10 -10 ------------- Run | Scr Mat Min Turns Passed 1555 | 33 1212 310 Spaces Moved 1023 | 17 780 226 Core 1 | . . 1 Treads . | . . . Legs 1011 | 17 780 214 Wheels 11 | . . 11 Hover . | . . . Flight . | . . . Fastest Speed 95 | 120 120 95 Average Speed 120 | 120 120 120 Slowest Speed 300 | 120 120 300 Overloaded Moves . | . . . Propulsion Burnouts . | . . . Robots Hopped . | . . . Cave-ins Triggered . | . . . Exploration Rate (%) 49 | 2 80 66 Regions Visited 2 Branch Regions 1 Pre-discovered Areas 1 | . . 1 Known Exits Taken . | . . . Unknown Exits Taken 2 | 1 1 . Scrap Searched 1 | . . 1 Spaces Dug 19 | . 11 8 Terrain Destroyed 32 | . 16 16 Melee . | . . . Projectile 5 | . 5 . AOE 27 | . 11 16 Terrain Rammed . | . . . Walls Destroyed . | . . . Machines Disabled . | . . . Actions | -11 -10 -10 --------- Run | Scr Mat Min Total 1224 | 25 949 250 Wait 60 | . 52 8 Move 1021 | 16 779 226 Hop . | . . . Pick Up 15 | 1 12 2 Fast Attach 10 | 1 9 . Attach 1 | . 1 . Detach 6 | . 6 . Swap 18 | 2 13 3 Drop 25 | 3 20 2 Fire 68 | 2 57 9 Melee . | . . . Ram . | . . . Kick . | . . . Crush . | . . . Escape Stasis . | . . . Rewire . | . . . Trap . | . . . Miscellaneous . | . . . Route ------- -11/Scrapyard -10/Materials (discovered 4 exits: [*Mat x3] / [*Min]) -10/Mines History --------- Turn | Location | Event 12 | -11/Scrapyard | Discovered new exit (range 3) 34 | -11/Scrapyard | Entered Materials 288 | -10/Materials | Discovered new exit (range 7) 323 | -10/Materials | Build established: Mutant 349 | -10/Materials | Discovered new exit (range 16) 564 | -10/Materials | Discovered new exit (range 14) 895 | -10/Materials | Discovered new exit (range 16) 1246 | -10/Materials | Entered Mines 1261 | -10/Mines | Met a Derelict bent on vengeance 1261 | -10/Mines | Learned location of Storage (-8) 1460 | -10/Mines | Received a Rocket Launcher from a helpful Derelict 1504 | -10/Mines | Assembled infested the area 1541 | -10/Mines | Core integrity fell below 50% 1551 | -10/Mines | Core integrity fell below 20% 1556 | -10/Mines | Destroyed by D-53 Grenadier with Mini Grenade Launcher Last Messages --------------- 01504_ ALERT: Infestation in the mines, dispatching Demolisher response squad. 01508_ System corrupted: Matter fused (-7). 01524_ as-70829 destroyed. 01529_ Destroyed Asb. F-torch. 01537_ C-30 ARC bursts open, deploying its payload. 01537_ D-53 Grenadier unfolds itself. 01537_ as-13518 destroyed. 01540_ as-09720 destroyed. 01540_ as-92208 destroyed. 01542_ as-48370 destroyed. 01542_ as-32857 destroyed. 01546_ Wheel destroyed. 01546_ Laser Drill disabled. 01547_ Lgt. Ion Engine destroyed. 01549_ The unstable cave ceiling collapses. 01554_ Aluminum Leg destroyed. 01555_ The unstable cave ceiling collapses. 01556_ Autogun destroyed. Map ----- +----------------------------------------------------+ | #????# #??## ############ ###????????????????? | | #???? #???#####??????????# #????????????????? | | #????###??#####???????????# #######??????????? | | #### #????# ####???????### #??????????? | | #????# [ #?????????# ##### #??????????? | | ######????# % #???????### #????????????????? | | #?????????# " #??????## #????????????????? | | #?????????# *% #??????# #????????????????? | | #?????????# #??????# ##???????????????? | | #?????????# [ #?????## #???????????????? | | #?????????# *% #?????# #???????????????? | | ##?????? ??# #??????# !##???????????????? | | #?????? #?### ###??????# #????????????????? | | #????? #????# ######??## ] ##???????????????? | | #????# #????# #### ###?????????????? | | #???# #????# ##????????????? | | #??# #????##### = #????????????? | | ### #?????????# ! #????????????? | | #??????????# #????????????? | | #???????????## ## # ##?######?????? | | ###???????????###### ## ] #### ##????? | | ##?????????##??# # ####?? | | #??????#+?## ??# ##? | | ##?????? ??# % ### #? | | ##????????? ??# " ##?## #? | | ##?????????? ### @ ! ##???# ##? | | #????????????# ##????# #?? | | ?????????????# ad # ##?????# #?? | | ?????????????# # " ##??????## ##?? | | ######???????# " ##????????## #??? | | ###?????# # "d # ##??????????# #### | | ####### # ####???????????# | | ## ## ## ## #####??????????????# | | ?# ## r # ###???????????????????## ### | | ?# =%= a ###???????############???# ### | | ?# * ##???????# #???# | | ?## !%= ##??????# ##### ## | | ??## ##?????# """ ## | | ???#### #?????# """ ######## | | ??????## ### #????# """ #?????? | | ???????## ##?## #????# #????? | | ????????######???# #????############???? | | ?????????????????## #??????????????????? | | ???????????????????# ?????????????????# # | | ???????????????????? ##????????????????#### | | ???????????????????? #????????????????????# | | ???????????????????? ##????????????????????# | | ?????????????????????# #?????????????????????# | | ??????????????????????# #????????????????????? | | ??????????????????????? #?????????????????????# | +----------------------------------------------------+ Best States ------------- Heat Dissipation 25 Energy Generation 10 Energy Capacity 250 Matter Stores 300 Matter Capacity 300 Sight Range 16 Robot Scan Range 14 Terrain Scan Density 10 Evasion (%) 55 Item Schematics ----------------- None Robot Schematics ------------------ None Fabricated ------------ Nothing Alien Tech Used ----------------- None Achievements -------------- None Challenges ------------ None Game ------ Seed HybridDisposableLoader Manual? 0 Play Time 00:23:50 Cumulative 13.4 hours Start 2022.03.24 @ 22:21:41 End 2022.03.24 @ 22:45:31 Sessions 1 Manual Loads 0 Difficulty Rogue Special Mode None Game No. 17 Rogue 10 Adventurer 7 Explorer 0 Win Type - Total 0 Types 0/0/0/0/0/0/0/0/0 Lore% 22 Gallery% 18 Achievement% 20 Wizard Run 0 Options --------- ASCII 1 Keyboard 0 Movement Numpad Keybinds 0 Fullscreen 2 Font 24/Proggy Map View 50x50 Tactical HUD 1 Map Filters NONE Filters NONE Steam 1 RUN: c438d2e6-2750-4cfe-850a-8dae945d9b31